fUSD/lending_fUSD_20241216
["ID","MTS","AMOUNT","RATE_DAILY","PERIOD"]
[345587825,1734371447003,-500.0,0.00024798,4]
[345587826,1734371447012,-500.0,0.00024798,4]
[345587827,1734371447022,-500.0,0.00024798,4]
[345587828,1734371447032,-3014.47,0.00024798,4]
[345587829,1734371447041,-500.0,0.00024798,4]
[345587830,1734371447051,-500.0,0.00024799,4]
[345587831,1734371447062,-500.0,0.00024799,4]
[345587832,1734371447071,-500.0,0.00024799,4]
[345587833,1734371447081,-500.0,0.00024799,4]
[345587834,1734371447090,-500.0,0.00024799,4]
[345587835,1734371447099,-500.0,0.00024799,4]
[345587837,1734371447109,-500.0,0.00024799,4]
[345587839,1734371447119,-500.0,0.00024799,4]
[345587841,1734371447128,-500.0,0.00024799,4]
[345587843,1734371447137,-500.0,0.00024799,4]
[345587845,1734371447146,-472.61674986,0.00024799,4]
[345587847,1734371447156,-500.0,0.00024799,4]
[345587849,1734371447165,-573.35251234,0.00024799,4]
[345587851,1734371447177,-500.0,0.00024799,4]
[345587853,1734371447187,-788.03,0.00024799,4]
[345587855,1734371447197,-500.0,0.00024799,4]
[345587857,1734371447208,-500.0,0.00024799,4]
[345587859,1734371447217,-500.0,0.00024799,4]
[345587861,1734371447226,-500.0,0.00024799,4]
[345587863,1734371447236,-500.0,0.00024799,4]
[345587865,1734371447245,-500.0,0.00024799,4]
[345587867,1734371447255,-573.91794978,0.00024799,4]
[345587869,1734371447264,-500.0,0.00024799,4]
[345587871,1734371447273,-500.0,0.00024799,4]
[345587873,1734371447283,-500.0,0.00024799,4]
[345587874,1734371447292,-500.0,0.00024799,4]
[345587876,1734371447301,-500.0,0.00024799,4]
[345587878,1734371447310,-500.0,0.00024799,4]
[345587880,1734371447320,-500.0,0.00024799,4]
[345587882,1734371447329,-500.0,0.00024799,4]
[345587884,1734371447339,-267.98634787,0.00024799,4]
[345587886,1734371447348,-634.70822016,0.00024799,4]
[345587888,1734371447357,-500.0,0.00024799,4]
[345587890,1734371447367,-500.0,0.00024799,4]
[345587892,1734371447376,-500.0,0.00024799,4]
[345587894,1734371447386,-500.0,0.00024799,4]
[345587896,1734371447396,-158.34745807,0.00024799,4]
[345587898,1734371447405,-319.16107791,0.00024799,4]
[345587900,1734371447415,-586.87,0.00024799,4]
[345587902,1734371447424,-500.0,0.00024799,4]
[345587904,1734371447433,-500.0,0.00024799,4]
[345587906,1734371447445,-500.0,0.00024799,4]
[345587908,1734371447463,-505.73,0.00024799,4]
[345587910,1734371447473,-451.86957292,0.00024799,4]
[345587912,1734371447483,-500.0,0.00024799,4]
[345587914,1734371447493,-500.0,0.00024799,4]
[345587916,1734371447503,-500.0,0.00024799,4]
[345587918,1734371447512,-188.75895826,0.00024799,4]
[345587920,1734371447522,-500.0,0.00024799,4]
[345587922,1734371447531,-500.0,0.00024799,4]
[345587924,1734371447540,-500.0,0.00024799,4]
[345587926,1734371447551,-500.0,0.00024799,4]
[345587928,1734371447560,-582.94258485,0.00024799,4]
[345587930,1734371447570,-500.0,0.00024799,4]
[345587932,1734371447579,-500.0,0.00024799,4]
[345587934,1734371447588,-535.08400846,0.00024799,4]
[345587936,1734371447597,-500.0,0.00024799,4]
[345587938,1734371447607,-500.0,0.00024799,4]
[345587940,1734371447617,-500.0,0.00024799,4]
[345587942,1734371447626,-500.0,0.00024799,4]
[345587944,1734371447636,-500.0,0.00024799,4]
[345587946,1734371447646,-504.98493861,0.00024799,4]
[345587948,1734371447655,-520.86,0.000248,2]
[345587950,1734371447664,-1234.6151,0.000248,2]
[345587951,1734371447674,-5346.55142305,0.000248,7]
[345587953,1734371447683,-262.78447282,0.000248,2]
[345587955,1734371447695,-1015.0,0.000248,9]
[345587957,1734371447705,-46951.11515242,0.000248,2]
[345587959,1734371447714,-150.0,0.00024819,2]
[345587962,1734371447724,-342.36404806,0.00024826,10]
[345587964,1734371447734,-1560.42781841,0.00024828,10]
[345587966,1734371447744,-44773.11203154,0.0002483,10]
[345587968,1734371447753,-200.0,0.00024834,10]
[345587970,1734371447762,-924.35101658,0.00024835,10]
[345587972,1734371447771,-1560.42781841,0.00024837,10]
[345587974,1734371447780,-924.35101658,0.00024839,10]
[345587976,1734371447793,-275.89214984,0.00024844,10]
[345587978,1734371447802,-342.36404806,0.00024846,10]
[345587979,1734371447812,-150.0,0.00024851,2]
[345587981,1734371447821,-342.36404806,0.00024855,10]
[345587983,1734371447831,-275.89214984,0.00024855,10]
[345587985,1734371447840,-150.0,0.00024861,2]
[345587987,1734371447850,-44773.11203154,0.00024861,10]
[345587989,1734371447860,-275.89214984,0.00024862,10]
[345587991,1734371447870,-1560.42781841,0.00024862,10]
[345587993,1734371447879,-44773.11203154,0.00024865,10]
[345587995,1734371447888,-924.35101658,0.00024865,10]
[345587997,1734371447898,-44773.11203154,0.00024869,10]
[345587999,1734371447907,-1560.42781841,0.0002487,10]
[345588001,1734371447916,-44773.11203154,0.0002487,10]
[345588003,1734371447926,-275.89214984,0.0002487,10]
[345588005,1734371447937,-500.0,0.00024873,2]
[345588007,1734371447946,-500.0,0.00024873,2]
[345588009,1734371447955,-500.44414763,0.00024873,2]
[345588011,1734371447965,-500.0,0.00024873,2]
[345588013,1734371447974,-381.8680061,0.00024873,2]
[345588015,1734371447983,-44773.11203154,0.00024873,10]
[345588017,1734371447994,-385.58,0.00024877,2]
[345588020,1734371448003,-500.0,0.00024877,4]
[345588021,1734371448012,-500.0,0.00024877,4]
[345588023,1734371448022,-214.76952027,0.00024878,4]
[345588025,1734371448032,-788.03,0.00024878,4]
[345588028,1734371448042,-500.0,0.00024878,4]
[345588030,1734371448051,-500.0,0.00024878,4]
[345588031,1734371448060,-371.7,0.00024878,4]
[345588033,1734371448070,-500.0,0.00024878,4]
[345588036,1734371448079,-152.045315,0.00024878,4]
[345588037,1734371448089,-500.0,0.00024878,4]
[345588040,1734371448099,-500.0,0.00024878,4]
[345588042,1734371448109,-739.33,0.00024878,4]
[345588044,1734371448119,-500.0,0.00024878,4]
[345588046,1734371448129,-195.26908383,0.00024878,4]
[345588048,1734371448138,-255.73891459,0.00024878,4]
[345588050,1734371448148,-614.49736778,0.00024878,4]
[345588051,1734371448157,-500.0,0.00024878,4]
[345588054,1734371448166,-624.69767323,0.00024878,4]
[345588055,1734371448175,-676.6,0.00024878,4]
[345588058,1734371448188,-292.1365122,0.00024878,4]
[345588059,1734371448197,-500.0,0.00024878,4]
[345588062,1734371448207,-500.0,0.00024878,4]
[345588064,1734371448217,-996.4,0.00024878,4]
[345588066,1734371448226,-157.88,0.00024878,4]
[345588068,1734371448236,-1312.83,0.00024878,4]
[345588070,1734371448246,-500.0,0.00024878,4]
[345588072,1734371448255,-1897.03,0.00024878,4]
[345588073,1734371448266,-500.0,0.00024878,4]
[345588076,1734371448276,-500.0,0.00024878,4]
[345588078,1734371448286,-500.0,0.00024878,4]
[345588079,1734371448296,-458.84559813,0.00024878,4]
[345588081,1734371448306,-173.36,0.00024878,4]
[345588083,1734371448315,-1000.0,0.00024878,4]
[345588085,1734371448325,-500.0,0.00024878,4]
[345588087,1734371448334,-500.0,0.00024878,4]
[345588090,1734371448344,-500.0,0.00024878,4]
[345588091,1734371448354,-164.42437308,0.00024878,4]
[345588093,1734371448363,-500.0,0.00024878,4]
[345588095,1734371448373,-600.46611525,0.00024878,4]
[345588097,1734371448383,-552.83,0.00024878,4]
[345588099,1734371448392,-500.0,0.00024878,4]
[345588101,1734371448402,-342.36404806,0.00024878,10]
[345588103,1734371448412,-275.89214984,0.00024878,10]
[345588105,1734371448421,-1000.0,0.00024879,2]
[345588107,1734371448430,-1000.0,0.00024879,2]
[345588109,1734371448443,-1000.0,0.00024879,2]
[345588111,1734371448454,-1000.0,0.00024879,2]
[345588113,1734371448463,-1000.0,0.00024879,2]
[345588115,1734371448473,-182.85,0.00024879,2]
[345588117,1734371448484,-500.0,0.00024879,4]
[345588119,1734371448493,-500.0,0.00024879,4]
[345588121,1734371448503,-619.39181529,0.00024879,4]
[345588123,1734371448512,-507.9544591,0.00024879,4]
[345588125,1734371448522,-518.31393178,0.00024879,4]
[345588127,1734371448532,-500.0,0.00024879,4]
[345588129,1734371448541,-421.58985066,0.00024879,4]
[345588131,1734371448551,-510.25639807,0.00024879,4]
[345588133,1734371448560,-250.23,0.00024879,4]
[345588135,1734371448570,-500.0,0.00024879,4]
[345588137,1734371448579,-500.0,0.00024879,4]
[345588139,1734371448589,-500.0,0.00024879,4]
[345588141,1734371448598,-376.44353826,0.00024879,4]
[345588143,1734371448608,-500.0,0.00024879,4]
[345588145,1734371448618,-500.0,0.00024879,4]
[345588147,1734371448627,-500.0,0.00024879,4]
[345588149,1734371448636,-500.0,0.00024879,4]
[345588151,1734371448646,-500.0,0.00024879,4]
[345588153,1734371448655,-500.0,0.00024879,4]
[345588155,1734371448664,-500.0,0.00024879,4]
[345588157,1734371448674,-500.0,0.00024879,4]
[345588159,1734371448683,-500.0,0.00024879,4]
[345588161,1734371448697,-500.0,0.00024879,4]
[345588163,1734371448707,-1560.42781841,0.00024881,10]
[345588164,1734371448716,-1560.42781841,0.00024882,10]
[345588166,1734371448726,-342.36404806,0.00024882,10]
[345588168,1734371448735,-200.0,0.00024885,10]
[345588170,1734371448744,-924.35101658,0.00024885,10]
[345588172,1734371448754,-275.89214984,0.00024887,10]
[345588174,1734371448763,-924.35101658,0.00024891,10]
[345588176,1734371448773,-150.0,0.00024897,2]
[345588178,1734371448784,-342.36404806,0.00024898,10]
[345588180,1734371448796,-173.79355878,0.00024898,2]
[345588182,1734371448806,-173.79355876,0.00024899,2]
[345588185,1734371448816,-924.35101658,0.00024899,10]
[345588186,1734371448825,-153.04400279,0.00024899,2]
[345588189,1734371448835,-173.79355876,0.00024899,2]
[345588191,1734371448845,-176.66778553,0.000249,2]
[345588193,1734371448854,-285.37,0.000249,31]
[345588194,1734371448864,-285.37,0.000249,31]
[345588196,1734371448874,-285.37,0.000249,31]
[345588199,1734371448884,-285.37,0.000249,31]
[345588200,1734371448894,-285.37,0.000249,31]
[345588210,1734371449015,-285.37,0.000249,31]
[345588211,1734371449026,-285.37,0.000249,31]
[345588212,1734371449036,-285.37,0.000249,31]
[345588213,1734371449045,-285.37,0.000249,31]
[345588214,1734371449054,-285.37,0.000249,31]
[345588215,1734371449064,-285.37,0.000249,31]
[345588216,1734371449074,-285.37,0.000249,31]
[345588217,1734371449083,-285.37,0.000249,31]
[345588218,1734371449094,-285.37,0.000249,31]
[345588220,1734371449103,-285.37,0.000249,31]
[345588221,1734371449113,-285.37,0.000249,31]
[345588223,1734371449123,-173.79355876,0.000249,2]
[345588225,1734371449133,-176.66778553,0.000249,2]
[345588227,1734371449142,-965.68398291,0.000249,2]
[345588230,1734371449154,-159.69194973,0.000249,2]
[345588232,1734371449164,-1199.72532091,0.000249,2]
[345588234,1734371449174,-52725.23532724,0.000249,2]
[345588235,1734371449183,-629.2560085,0.000249,2]
[345588238,1734371449196,-352.0507087,0.000249,2]
[345588240,1734371449205,-1000.0,0.00024908,2]
[345588242,1734371449216,-150.0,0.00024924,2]
[345588244,1734371449225,-150.0,0.00024936,2]
[345588246,1734371449235,-500.0,0.00024973,2]
[345588247,1734371449244,-500.0,0.00024973,2]
[345588249,1734371449254,-150.0,0.00024978,2]
[345588251,1734371449265,-298.44629499,0.00024986,4]
[345588253,1734371449274,-150.00000001,0.00024986,4]
[345588256,1734371449284,-272.20413029,0.00024986,4]
[345588257,1734371449294,-2843.999901,0.00024987,32]
[345588259,1734371449303,-150.0,0.00024993,2]
[345588261,1734371449313,-1850.1691012,0.00024995,2]
[345588263,1734371449322,-1616.3036772,0.00024995,2]
[345588265,1734371449332,-1382.4382532,0.00024995,2]
[345588267,1734371449341,-1148.5728292,0.00024995,2]
[345588269,1734371449350,-914.7074051,0.00024995,2]
[345588271,1734371449360,-680.8419811,0.00024995,2]
[345588273,1734371449369,-4232.9499675,0.00024995,2]
[345588275,1734371449379,-3686.2894734,0.00024995,2]
[345588277,1734371449388,-3139.6289792,0.00024995,2]
[345588279,1734371449398,-2592.968485,0.00024995,2]
[345588281,1734371449406,-2046.3079908,0.00024995,2]
[345588283,1734371449416,-1499.6474966,0.00024995,2]
[345588285,1734371449425,-500.0,0.00024997,4]
[345588287,1734371449434,-500.0,0.00024997,4]
[345588289,1734371449446,-163.831247,0.00024997,4]
[345588291,1734371449456,-267.99,0.00024997,4]
[345588293,1734371449466,-500.0,0.00024997,4]
[345588295,1734371449475,-500.0,0.00024997,4]
[345588296,1734371449484,-500.0,0.00024997,4]
[345588298,1734371449493,-505.73,0.00024997,4]
[345588300,1734371449503,-500.0,0.00024997,4]
[345588302,1734371449511,-500.0,0.00024997,4]
[345588304,1734371449521,-500.0,0.00024997,4]
[345588306,1734371449530,-500.0,0.00024997,4]
[345588308,1734371449539,-1303.51,0.00024997,4]
[345588310,1734371449549,-500.0,0.00024997,4]
[345588312,1734371449558,-3338.83,0.00024997,4]
[345588314,1734371449567,-1312.83,0.00024997,4]
[345588316,1734371449576,-500.0,0.00024997,4]
[345588318,1734371449585,-761.12,0.00024997,4]
[345588320,1734371449595,-5123.95,0.00024997,4]
[345588322,1734371449604,-469.06,0.00024997,4]
[345588324,1734371449613,-10667.72,0.00024997,4]
[345588326,1734371449622,-500.0,0.00024997,4]
[345588328,1734371449632,-500.0,0.00024997,4]
[345588330,1734371449641,-741.93,0.00024997,4]
[345588332,1734371449650,-500.0,0.00024997,4]
[345588334,1734371449659,-500.0,0.00024997,4]
[345588336,1734371449668,-500.0,0.00024997,4]
[345588338,1734371449678,-500.0,0.00024997,4]
[345588339,1734371449688,-3014.47,0.00024997,4]
[345588341,1734371449697,-500.0,0.00024997,4]
[345588343,1734371449706,-500.0,0.00024997,4]
[345588345,1734371449715,-788.03,0.00024998,4]
[345588347,1734371449724,-788.03,0.00024998,4]
[345588349,1734371449734,-500.0,0.00024998,4]
[345588351,1734371449743,-500.0,0.00024998,4]
[345588353,1734371449752,-500.0,0.00024998,4]
[345588355,1734371449761,-385.63058189,0.00024998,4]
[345588357,1734371449770,-500.0,0.00024998,4]
[345588359,1734371449780,-500.0,0.00024998,4]
[345588361,1734371449791,-152.045315,0.00024998,4]
[345588363,1734371449802,-152.045315,0.00024998,4]
[345588364,1734371449811,-500.0,0.00024998,4]
[345588366,1734371449820,-181.23,0.00024998,4]
[345588368,1734371449829,-512.97784298,0.00024998,4]
[345588370,1734371449839,-739.33,0.00024998,4]
[345588372,1734371449851,-739.33,0.00024998,4]
[345588374,1734371449861,-500.0,0.00024998,4]
[345588376,1734371449871,-500.0,0.00024998,4]
[345588378,1734371449880,-500.0,0.00024998,4]
[345588380,1734371449891,-500.0,0.00024998,4]
[345588382,1734371449900,-609.52069457,0.00024998,4]
[345588384,1734371449910,-500.0,0.00024998,4]
[345588386,1734371449920,-676.6,0.00024998,4]
[345588389,1734371449930,-676.6,0.00024998,4]
[345588390,1734371449939,-538.64,0.00024998,4]
[345588392,1734371449949,-500.0,0.00024998,4]
[345588395,1734371449959,-500.0,0.00024998,4]
[345588397,1734371449968,-505.73,0.00024998,4]
[345588398,1734371449977,-505.73,0.00024998,4]
[345588400,1734371449986,-996.4,0.00024998,4]
[345588401,1734371449996,-996.4,0.00024998,4]
[345588403,1734371450005,-500.0,0.00024998,4]
[345588405,1734371450014,-500.0,0.00024998,4]
[345588406,1734371450023,-500.0,0.00024998,4]
[345588408,1734371450033,-500.0,0.00024998,4]
[345588409,1734371450042,-500.0,0.00024998,4]
[345588411,1734371450051,-500.0,0.00024998,4]
[345588413,1734371450061,-1303.51,0.00024998,4]
[345588414,1734371450069,-1303.51,0.00024998,4]
[345588416,1734371450079,-500.0,0.00024998,4]
[345588417,1734371450088,-3338.83,0.00024998,4]
[345588419,1734371450097,-1312.83,0.00024998,4]
[345588421,1734371450107,-3338.83,0.00024998,4]
[345588422,1734371450116,-1312.83,0.00024998,4]
[345588424,1734371450125,-500.0,0.00024998,4]
[345588426,1734371450135,-500.0,0.00024998,4]
[345588427,1734371450145,-761.12,0.00024998,4]
[345588429,1734371450154,-761.12,0.00024998,4]
[345588431,1734371450165,-5123.95,0.00024998,4]
[345588432,1734371450174,-5123.95,0.00024998,4]
[345588434,1734371450183,-1897.03,0.00024998,4]
[345588436,1734371450195,-1897.03,0.00024998,4]
[345588437,1734371450205,-10667.72,0.00024998,4]
[345588439,1734371450214,-10667.72,0.00024998,4]
[345588441,1734371450223,-500.0,0.00024998,4]
[345588442,1734371450232,-325.77,0.00024998,4]
[345588444,1734371450241,-500.0,0.00024998,4]
[345588446,1734371450251,-500.0,0.00024998,4]
[345588447,1734371450260,-500.0,0.00024998,4]
[345588449,1734371450270,-500.0,0.00024998,4]
[345588451,1734371450280,-1000.0,0.00024998,4]
[345588452,1734371450290,-1000.0,0.00024998,4]
[345588454,1734371450300,-741.93,0.00024998,4]
[345588456,1734371450310,-741.93,0.00024998,4]
[345588457,1734371450319,-500.0,0.00024998,4]
[345588459,1734371450330,-500.0,0.00024998,4]
[345588461,1734371450339,-500.0,0.00024998,4]
[345588462,1734371450348,-497.57076489,0.00024998,4]
[345588464,1734371450359,-500.0,0.00024998,4]
[345588466,1734371450368,-500.0,0.00024998,4]
[345588467,1734371450377,-435.36763922,0.00024998,4]
[345588469,1734371450386,-500.0,0.00024998,4]
[345588471,1734371450396,-500.0,0.00024998,4]
[345588473,1734371450405,-351.04559832,0.00024998,4]
[345588474,1734371450414,-500.0,0.00024998,4]
[345588476,1734371450423,-500.0,0.00024998,4]
[345588478,1734371450432,-500.0,0.00024998,4]
[345588479,1734371450449,-500.0,0.00024998,4]
[345588481,1734371450459,-3014.47,0.00024998,4]
[345588483,1734371450468,-3014.47,0.00024998,4]
[345588484,1734371450477,-500.0,0.00024998,4]
[345588486,1734371450489,-500.0,0.00024998,4]
[345588488,1734371450499,-500.0,0.00024998,4]
[345588490,1734371450508,-500.0,0.00024998,4]
[345588492,1734371450518,-500.0,0.00024998,4]
[345588493,1734371450527,-500.0,0.00024998,4]
[345588495,1734371450537,-500.0,0.00024998,4]
[345588497,1734371450547,-999.0,0.00024998,2]
[345588499,1734371450557,-300.0,0.00024999,10]
[345588500,1734371450566,-300.0,0.00024999,10]
[345588502,1734371450577,-300.0,0.00024999,10]
[345588504,1734371450586,-300.0,0.00024999,10]
[345588505,1734371450595,-150.0,0.00024999,30]
[345588507,1734371450605,-1000.0,0.00024999,2]
[345588509,1734371450614,-861.73,0.00024999,2]
[345588510,1734371450624,-1238.0675,0.00024999,2]
[345588512,1734371450633,-788.03,0.00024999,4]
[345588514,1734371450643,-788.03,0.00024999,4]
[345588516,1734371450653,-788.03,0.00024999,4]
[345588517,1734371450663,-788.03,0.00024999,4]
[345588519,1734371450672,-788.03,0.00024999,4]
[345588521,1734371450682,-788.03,0.00024999,4]
[345588523,1734371450697,-788.03,0.00024999,4]
[345588524,1734371450707,-788.03,0.00024999,4]
[345588526,1734371450716,-788.03,0.00024999,4]
[345588528,1734371450725,-788.03,0.00024999,4]
[345588529,1734371450734,-788.03,0.00024999,4]
[345588531,1734371450743,-788.03,0.00024999,4]
[345588533,1734371450752,-788.03,0.00024999,4]
[345588534,1734371450761,-788.03,0.00024999,4]
[345588536,1734371450771,-788.03,0.00024999,4]
[345588538,1734371450781,-788.03,0.00024999,4]
[345588539,1734371450792,-788.03,0.00024999,4]
[345588541,1734371450801,-788.03,0.00024999,4]
[345588543,1734371450810,-788.06,0.00024999,4]
[345588545,1734371450819,-500.0,0.00024999,4]
[345588546,1734371450829,-500.0,0.00024999,4]
[345588548,1734371450838,-500.0,0.00024999,4]
[345588550,1734371450848,-500.0,0.00024999,4]
[345588552,1734371450857,-500.0,0.00024999,4]
[345588553,1734371450866,-500.0,0.00024999,4]
[345588555,1734371450875,-500.0,0.00024999,4]
[345588557,1734371450884,-500.0,0.00024999,4]
[345588558,1734371450893,-178.66,0.00024999,4]
[345588560,1734371450902,-500.0,0.00024999,4]
[345588562,1734371450911,-500.0,0.00024999,4]
[345588563,1734371450920,-152.093938,0.00024999,4]
[345588565,1734371450930,-163.831247,0.00024999,4]
[345588567,1734371450943,-163.831247,0.00024999,4]
[345588569,1734371450953,-163.831247,0.00024999,4]
[345588570,1734371450962,-152.045315,0.00024999,4]
[345588572,1734371450971,-163.831247,0.00024999,4]
[345588574,1734371450980,-163.831247,0.00024999,4]
[345588575,1734371450990,-152.045315,0.00024999,4]
[345588577,1734371450999,-152.045315,0.00024999,4]
[345588579,1734371451008,-152.045315,0.00024999,4]
[345588581,1734371451017,-152.045315,0.00024999,4]
[345588582,1734371451026,-152.045315,0.00024999,4]
[345588584,1734371451035,-152.045315,0.00024999,4]
[345588586,1734371451044,-152.045315,0.00024999,4]
[345588588,1734371451054,-152.045315,0.00024999,4]
[345588590,1734371451063,-152.045315,0.00024999,4]
[345588592,1734371451073,-152.045315,0.00024999,4]
[345588594,1734371451082,-152.045315,0.00024999,4]
[345588596,1734371451091,-152.045315,0.00024999,4]
[345588598,1734371451101,-152.045315,0.00024999,4]
[345588603,1734371451212,-152.045315,0.00024999,4]
[345588604,1734371451222,-739.33,0.00024999,4]
[345588605,1734371451232,-739.33,0.00024999,4]
[345588606,1734371451242,-739.33,0.00024999,4]
[345588607,1734371451251,-739.33,0.00024999,4]
[345588608,1734371451261,-739.33,0.00024999,4]
[345588609,1734371451271,-739.33,0.00024999,4]
[345588610,1734371451280,-739.33,0.00024999,4]
[345588611,1734371451290,-739.33,0.00024999,4]
[345588612,1734371451301,-739.33,0.00024999,4]
[345588613,1734371451311,-739.33,0.00024999,4]
[345588614,1734371451320,-739.33,0.00024999,4]
[345588615,1734371451330,-739.33,0.00024999,4]
[345588616,1734371451340,-739.33,0.00024999,4]
[345588617,1734371451351,-739.33,0.00024999,4]
[345588619,1734371451361,-739.33,0.00024999,4]
[345588620,1734371451371,-739.33,0.00024999,4]
[345588622,1734371451381,-739.33,0.00024999,4]
[345588623,1734371451391,-739.33,0.00024999,4]
[345588625,1734371451400,-739.46,0.00024999,4]
[345588627,1734371451410,-500.0,0.00024999,4]
[345588629,1734371451420,-271.47733604,0.00024999,4]
[345588631,1734371451430,-500.0,0.00024999,4]
[345588633,1734371451444,-500.0,0.00024999,4]
[345588635,1734371451454,-500.0,0.00024999,4]
[345588637,1734371451463,-500.0,0.00024999,4]
[345588639,1734371451473,-500.0,0.00024999,4]
[345588641,1734371451483,-500.0,0.00024999,4]
[345588643,1734371451493,-500.0,0.00024999,4]
[345588645,1734371451503,-500.0,0.00024999,4]
[345588647,1734371451513,-500.0,0.00024999,4]
[345588650,1734371451523,-500.0,0.00024999,4]
[345588652,1734371451532,-676.6,0.00024999,4]
[345588653,1734371451543,-500.0,0.00024999,4]
[345588655,1734371451552,-676.6,0.00024999,4]
[345588658,1734371451562,-500.0,0.00024999,4]
[345588659,1734371451573,-676.6,0.00024999,4]
[345588661,1734371451583,-676.6,0.00024999,4]
[345588664,1734371451592,-500.0,0.00024999,4]
[345588665,1734371451601,-500.0,0.00024999,4]
[345588667,1734371451610,-676.6,0.00024999,4]
[345588669,1734371451619,-500.0,0.00024999,4]
[345588671,1734371451628,-676.6,0.00024999,4]
[345588673,1734371451637,-170.71290793,0.00024999,4]
[345588675,1734371451646,-676.6,0.00024999,4]
[345588677,1734371451656,-676.6,0.00024999,4]
[345588679,1734371451665,-676.6,0.00024999,4]
[345588681,1734371451674,-676.6,0.00024999,4]
[345588683,1734371451683,-676.6,0.00024999,4]
[345588685,1734371451695,-676.6,0.00024999,4]
[345588687,1734371451704,-676.6,0.00024999,4]
[345588689,1734371451713,-676.6,0.00024999,4]
[345588691,1734371451723,-676.6,0.00024999,4]
[345588693,1734371451732,-676.6,0.00024999,4]
[345588695,1734371451741,-676.6,0.00024999,4]
[345588697,1734371451751,-676.6,0.00024999,4]
[345588699,1734371451760,-676.72000001,0.00024999,4]
[345588701,1734371451770,-500.0,0.00024999,4]
[345588703,1734371451779,-500.0,0.00024999,4]
[345588705,1734371451790,-500.0,0.00024999,4]
[345588707,1734371451799,-500.0,0.00024999,4]
[345588709,1734371451809,-505.73,0.00024999,4]
[345588711,1734371451818,-505.73,0.00024999,4]
[345588713,1734371451827,-505.73,0.00024999,4]
[345588715,1734371451837,-505.73,0.00024999,4]
[345588717,1734371451846,-505.73,0.00024999,4]
[345588718,1734371451855,-505.73,0.00024999,4]
[345588720,1734371451865,-505.73,0.00024999,4]
[345588722,1734371451875,-505.73,0.00024999,4]
[345588724,1734371451884,-505.73,0.00024999,4]
[345588726,1734371451893,-505.73,0.00024999,4]
[345588729,1734371451903,-505.73,0.00024999,4]
[345588730,1734371451912,-505.73,0.00024999,4]
[345588732,1734371451921,-505.73,0.00024999,4]
[345588734,1734371451930,-505.73,0.00024999,4]
[345588736,1734371451943,-505.73,0.00024999,4]
[345588738,1734371451952,-505.73,0.00024999,4]
[345588740,1734371451961,-505.73,0.00024999,4]
[345588742,1734371451971,-505.94,0.00024999,4]
[345588745,1734371451980,-996.4,0.00024999,4]
[345588747,1734371451990,-996.4,0.00024999,4]
[345588749,1734371451999,-996.4,0.00024999,4]
[345588750,1734371452008,-996.4,0.00024999,4]
[345588752,1734371452018,-996.4,0.00024999,4]
[345588754,1734371452027,-996.4,0.00024999,4]
[345588756,1734371452036,-500.0,0.00024999,4]
[345588758,1734371452046,-996.4,0.00024999,4]